bitfinex/quotes_SOLUSD_20241216
["timestamp","ask_amount","ask_price","bid_price","bid_amount"]
[1734364436097,29.02731885,216.16,216.04,142.9053]
[1734364436500,9.02731885,216.13,216.04,6.2053]
[1734364437092,9.02731885,216.14,216.05,0.12549]
[1734364440013,9.02731885,216.15,216.05,0.12549]
[1734364440203,20.0,216.16,216.05,0.12549]
[1734364440792,20.0,216.14,216.05,0.12549]
[1734364441178,20.0,216.17,216.05,0.12549]
[1734364441379,29.02731885,216.17,216.05,0.12549]
[1734364441997,20.0,216.17,216.05,0.12549]
[1734364442603,20.0,216.16,216.05,0.12549]
[1734364442807,20.0,216.15,216.05,0.12549]
[1734364443009,20.0,216.16,216.05,0.8195231]
[1734364443208,20.0,216.16,216.05,0.12549]
[1734364443796,10.00679627,216.23,216.05,137.51950627]
[1734364443797,7.18070731,216.23,216.05,137.51950627]
[1734364444113,35.90353655,216.27,216.11,0.12549]
[1734364444330,7.18070731,216.28,216.13,0.12549]
[1734364444510,7.18070731,216.28,216.13,0.81921352]
[1734364444688,7.18070731,216.28,216.15,0.12549]
[1734364444889,7.18070731,216.29,216.15,0.81919195]
[1734364445116,9.02731885,216.31,216.17,0.12549]
[1734364445415,9.02731885,216.3,216.17,137.51909148]
[1734364445610,9.02731885,216.3,216.17,136.82549]
[1734364446503,9.02731885,216.33,216.21,0.12549]
[1734364446905,14.08325013,216.32,216.21,0.12549]
[1734364447219,14.08325013,216.29,216.19,0.12549]
[1734364447420,14.08325013,216.28,216.19,0.12549]
[1734364447783,14.08325013,216.25,216.19,0.12549]
[1734364447988,14.08325013,216.25,216.18,6.653]
[1734364448226,14.08325013,216.23,216.13,6.5139]
[1734364448401,14.08325013,216.23,216.14,0.12549]
[1734364449090,28.2708088,216.31,216.14,0.12549]
[1734364449091,14.08325013,216.24,216.14,0.12549]
[1734364449289,14.08325013,216.23,216.14,0.12549]
[1734364449915,14.08325013,216.21,216.13,6.5139]
[1734364450118,14.08325013,216.21,216.07,142.19093148]
[1734364450341,14.08325013,216.17,216.07,12.00483148]
[1734364450543,23.776884,216.21,216.08,0.12549]
[1734364450544,20.0,216.18,216.08,0.12549]
[1734364450755,14.08325013,216.21,216.08,0.12549]
[1734364450917,14.08325013,216.2,216.08,0.12549]
[1734364451239,1.6051,216.27,216.08,137.51945272]
[1734364451550,8.82310731,216.33,216.13,20.12549]
[1734364451839,14.08325013,216.31,216.18,6.24369]
[1734364452041,14.08325013,216.3,216.18,6.24369]
[1734364452421,14.08325013,216.31,216.18,6.24369]
[1734364455442,14.08325013,216.32,216.18,6.93732028]
[1734364455627,14.08325013,216.33,216.22,0.12549]
[1734364456343,14.08325013,216.35,216.22,0.12549]
[1734364456641,14.08325013,216.34,216.22,0.12549]
[1734364457058,1.5069,216.38,216.25,20.0]
[1734364457356,14.08325013,216.39,216.28,0.12549]
[1734364457850,14.08325013,216.42,216.28,0.12549]
[1734364458230,1.5069,216.43,216.31,0.12549]
[1734364458730,15.59015013,216.43,216.31,0.12549]
[1734364458953,14.08325013,216.44,216.31,0.12549]
[1734364459858,14.08325013,216.45,216.33,0.12549]
[1734364460172,23.776884,216.44,216.33,0.12549]
[1734364460318,37.86013413,216.44,216.33,0.12549]
[1734364460731,14.08325013,216.41,216.29,136.7]
[1734364460949,14.08325013,216.41,216.27,143.2738]
[1734364461157,14.08325013,216.41,216.28,0.12549]
[1734364462131,23.776884,216.44,216.28,0.12549]
[1734364462132,14.08325013,216.39,216.28,0.12549]
[1734364462340,23.776884,216.44,216.28,0.12549]
[1734364462341,14.08325013,216.38,216.28,0.12549]
[1734364462745,14.08325013,216.4,216.28,0.12549]
[1734364463255,14.08325013,216.39,216.28,0.12549]
[1734364464350,14.08325013,216.39,216.27,6.5738]
[1734364465750,14.08325013,216.38,216.28,0.12549]
[1734364466073,14.08325013,216.39,216.28,0.12549]
[1734364466863,14.08325013,216.38,216.28,0.12549]
[1734364467346,14.08325013,216.39,216.28,0.12549]
[1734364467550,20.0,216.41,216.28,0.12549]
[1734364467979,23.776884,216.42,216.28,0.12549]
[1734364468199,23.776884,216.42,216.27,7.26716063]
[1734364468200,14.08325013,216.43,216.31,0.12549]
[1734364468476,37.86013413,216.44,216.31,0.12549]
[1734364468674,1.5246,216.48,216.36,20.12549]
[1734364468852,14.08325013,216.5,216.36,20.12549]
[1734364469493,14.08325013,216.48,216.36,20.12549]
[1734364469655,14.08325013,216.47,216.36,20.12549]
[1734364469866,14.08325013,216.41,216.32,6.5884]
[1734364470683,14.08325013,216.42,216.32,6.5884]
[1734364471171,14.08325013,216.45,216.32,6.5884]
[1734364471475,14.08325013,216.5,216.35,20.0]
[1734364471676,14.08325013,216.5,216.36,20.0]
[1734364472069,14.08325013,216.51,216.36,6.31570759]
[1734364472271,14.08325013,216.52,216.36,143.70865897]
[1734364472454,14.08325013,216.51,216.36,143.01570759]
[1734364472970,14.08325013,216.52,216.37,23.776884]
[1734364473176,14.08325013,216.52,216.38,0.69294208]
[1734364473353,14.08325013,216.52,216.39,6.382]
[1734364473562,0.5644748,216.53,216.39,6.382]
[1734364474093,0.5644748,216.53,216.42,20.0]
[1734364475281,0.5644748,216.53,216.42,156.7]
[1734364476178,0.5644748,216.53,216.43,0.12549]
[1734364476793,0.5644748,216.53,216.45,0.12549]
[1734364479493,14.64772493,216.53,216.45,0.12549]
[1734364480280,0.5644748,216.53,216.45,0.12549]
[1734364483483,0.5644748,216.53,216.45,0.8182615]
[1734364484182,0.5644748,216.53,216.45,0.12549]
[1734364489505,0.5644748,216.53,216.45,0.81823649]
[1734364489674,0.5644748,216.53,216.48,20.12549]
[1734364489871,0.5644748,216.53,216.48,156.82549]
[1734364490114,0.5644748,216.53,216.52,0.12549]
[1734364490474,0.5644748,216.53,216.52,136.82549]
[1734364491999,14.08325013,216.69,216.53,23.776884]
[1734364492186,1.5429,216.7,216.54,0.81788405]
[1734364492187,14.08325013,216.68,216.54,0.81788405]
[1734364492394,14.08325013,216.61,216.54,0.12549]
[1734364492777,14.08325013,216.61,216.52,0.12549]
[1734364493195,14.08325013,216.62,216.52,0.12549]
[1734364494685,14.08325013,216.63,216.52,0.12549]
[1734364494888,14.08325013,216.62,216.52,0.12549]
[1734364495075,23.776884,216.69,216.46,6.2329]
[1734364495076,14.08325013,216.57,216.46,6.2329]
[1734364495402,14.08325013,216.58,216.47,0.12549]
[1734364495617,14.08325013,216.59,216.47,0.12549]
[1734364496291,14.08325013,216.6,216.47,0.12549]
[1734364496494,14.08325013,216.62,216.47,0.81817307]
[1734364496819,14.08325013,216.62,216.5,0.12549]
[1734364498192,37.86013413,216.63,216.5,0.12549]
[1734364498829,14.08325013,216.63,216.5,0.12549]
[1734364499360,14.08325013,216.61,216.5,0.12549]
[1734364499995,14.08325013,216.63,216.5,0.12549]
[1734364500519,14.08325013,216.62,216.5,0.12549]
[1734364500699,14.08325013,216.61,216.5,0.12549]
[1734364501728,14.08325013,216.61,216.46,142.9329]
[1734364501729,14.08325013,216.55,216.46,6.2329]
[1734364501930,14.08325013,216.54,216.46,6.2329]
[1734364502897,14.08325013,216.53,216.46,6.2329]
[1734364503092,37.86013413,216.57,216.46,6.2329]
[1734364503303,20.0,216.58,216.46,6.2329]
[1734364503304,14.08325013,216.56,216.46,6.2329]
[1734364504126,37.86013413,216.55,216.46,6.2329]
[1734364504500,14.08325013,216.57,216.46,6.2329]
[1734364504705,14.08325013,216.59,216.46,6.2329]
[1734364505016,23.776884,216.58,216.46,6.2329]
[1734364505339,20.0,216.56,216.46,6.2329]
[1734364505496,14.08325013,216.57,216.46,6.2329]
[1734364506104,14.08325013,216.58,216.46,6.2329]
[1734364506524,14.08325013,216.57,216.46,6.2329]
[1734364507419,14.08325013,216.58,216.46,6.2329]
[1734364509424,14.08325013,216.58,216.47,0.12549]
[1734364513227,14.08325013,216.49,216.4,6.1117]
[1734364513435,14.08325013,216.46,216.4,6.1117]
[1734364513612,14.08325013,216.45,216.4,6.1117]
[1734364513927,14.08325013,216.45,216.33,6.397]
[1734364514128,14.08325013,216.45,216.33,143.097]
[1734364514433,14.08325013,216.43,216.33,6.397]
[1734364514929,14.08325013,216.44,216.33,6.397]
[1734364515231,14.08325013,216.45,216.34,0.12549]
[1734364515632,20.0,216.53,216.34,0.12549]
[1734364515633,14.08325013,216.48,216.34,137.51863298]
[1734364515825,14.08325013,216.46,216.34,136.82549]
[1734364516309,14.08325013,216.46,216.34,136.7]
[1734364517331,14.08325013,216.47,216.35,0.12549]
[1734364518337,14.08325013,216.48,216.35,0.12549]
[1734364518522,14.08325013,216.47,216.35,0.12549]
[1734364520015,37.86013413,216.48,216.35,0.12549]
[1734364520336,14.08325013,216.46,216.35,0.12549]
[1734364520648,20.0,216.45,216.35,0.12549]
[1734364521411,20.0,216.45,216.34,0.12549]
[1734364522534,14.08325013,216.49,216.34,0.12549]
[1734364522734,20.0,216.48,216.34,143.08663495]
[1734364522924,20.0,216.48,216.34,142.39350164]
[1734364523130,20.0,216.48,216.36,0.12549]
[1734364523734,14.08325013,216.54,216.36,136.82549]
[1734364523935,14.08325013,216.54,216.4,0.12549]
[1734364524456,1.82616022,216.56,216.42,0.12549]
[1734364524751,1.6281,216.57,216.42,0.12549]
[1734364524920,14.08325013,216.55,216.42,0.12549]
[1734364525125,14.08325013,216.56,216.42,0.12549]
[1734364525322,1.6281,216.57,216.42,137.51832656]
[1734364525517,1.6281,216.57,216.42,136.82549]
[1734364526057,15.71135013,216.57,216.42,136.82549]
[1734364526353,1.6281,216.57,216.42,136.82549]
[1734364526559,15.71135013,216.57,216.42,136.82549]
[1734364527055,14.08325013,216.54,216.42,136.82549]
[1734364527339,34.08325013,216.53,216.42,136.82549]
[1734364527751,20.0,216.53,216.42,136.82549]
[1734364528938,20.0,216.55,216.44,0.12549]
[1734364529925,6.2329,216.58,216.44,136.82549]
[1734364530129,6.2329,216.58,216.46,0.12549]
[1734364530325,6.2329,216.58,216.48,0.12549]
[1734364531146,15.89824153,216.62,216.48,20.12549]
[1734364531347,15.898242,216.61,216.5,0.12549]
[1734364531925,15.898242,216.61,216.52,0.12549]
[1734364532126,15.9729394,216.66,216.52,0.12549]
[1734364532127,1.88968927,216.66,216.52,0.12549]
[1734364532326,15.97294,216.65,216.54,0.12549]
[1734364535545,30.05619013,216.65,216.51,136.7]
[1734364535854,30.05619013,216.65,216.52,0.12549]
[1734364536426,30.05619013,216.65,216.52,136.82549]
[1734364536841,15.97294,216.65,216.52,136.82549]
[1734364537627,14.08325013,216.63,216.52,136.7]
[1734364538321,15.97294,216.65,216.52,136.7]
[1734364538322,30.05619013,216.65,216.53,0.12549]
[1734364539151,14.08325013,216.64,216.53,0.12549]
[1734364539349,14.08325013,216.64,216.5,0.12549]
[1734364539561,14.08325013,216.64,216.5,0.81806884]
[1734364540140,15.97294,216.65,216.53,0.12549]
[1734364540338,15.97294,216.65,216.53,0.81794219]
[1734364540951,20.0,216.65,216.53,0.81794219]
[1734364541449,20.0,216.65,216.55,0.12549]
[1734364541639,20.0,216.65,216.57,0.12549]
[1734364542036,15.97294,216.67,216.57,0.12549]
[1734364542649,14.08325013,216.69,216.57,0.12549]
[1734364543037,28.16650013,216.68,216.57,0.12549]
[1734364543440,14.08325013,216.67,216.57,0.12549]
[1734364544052,14.08325013,216.64,216.56,6.2162]
[1734364544254,14.08325013,216.59,216.51,6.454]
[1734364544460,14.08325013,216.58,216.51,6.454]
[1734364545250,14.08325013,216.59,216.51,6.454]
[1734364545452,1.5788,216.63,216.51,6.454]
[1734364545453,14.08325013,216.6,216.52,0.12549]
[1734364545852,14.08325013,216.59,216.52,0.12549]
[1734364546243,14.08325013,216.57,216.51,6.454]
[1734364546643,14.08325013,216.57,216.52,0.12549]
[1734364547252,14.08325013,216.58,216.52,0.12549]
[1734364547733,14.08325013,216.59,216.52,0.12549]
[1734364547933,23.40728812,216.63,216.52,0.12549]
[1734364547934,14.08325013,216.6,216.52,0.12549]
[1734364548830,14.08325013,216.59,216.52,0.12549]
[1734364549345,23.40728812,216.63,216.52,0.12549]
[1734364549346,14.08325013,216.6,216.52,0.12549]
[1734364549551,14.08325013,216.61,216.52,0.12549]
[1734364551262,14.08325013,216.6,216.52,0.12549]
[1734364551747,14.08325013,216.59,216.52,0.12549]
[1734364551956,14.08325013,216.58,216.52,0.12549]
[1734364552597,14.08325013,216.58,216.45,136.7]
[1734364552598,14.08325013,216.54,216.45,6.0851]
[1734364553346,14.08325013,216.55,216.46,0.12549]
[1734364553550,32.14705761,216.64,216.46,0.12549]
[1734364553551,14.08325013,216.57,216.46,0.12549]
[1734364553750,14.08325013,216.56,216.46,0.12549]
[1734364554561,14.08325013,216.57,216.46,0.12549]
[1734364555166,14.08325013,216.56,216.46,0.12549]
[1734364557246,14.08325013,216.57,216.46,0.12549]
[1734364557442,14.08325013,216.55,216.46,0.12549]
[1734364558180,14.08325013,216.58,216.46,0.12549]
[1734364558349,23.776884,216.61,216.46,0.12549]
[1734364558551,14.08325013,216.61,216.46,161.29508961]
[1734364558795,14.08325013,216.6,216.46,160.602374]
[1734364558962,14.08325013,216.57,216.46,0.12549]
[1734364559147,14.08325013,216.55,216.46,0.12549]
[1734364560170,1.83941916,216.61,216.46,0.12549]
[1734364560171,14.08325013,216.54,216.46,0.12549]
[1734364560681,14.08325013,216.56,216.46,0.12549]
[1734364561757,14.08325013,216.55,216.46,0.12549]
[1734364561961,14.08325013,216.56,216.46,0.12549]
[1734364562162,14.08325013,216.55,216.46,0.12549]
[1734364562478,34.08325013,216.57,216.46,0.12549]
[1734364563277,14.08325013,216.56,216.46,0.12549]
[1734364563480,34.08325013,216.57,216.46,0.12549]
[1734364563974,20.0,216.57,216.46,0.12549]
[1734364564199,20.0,216.56,216.46,0.12549]
[1734364564885,20.0,216.55,216.46,0.12549]
[1734364565190,20.0,216.56,216.46,0.12549]
[1734364565853,20.0,216.58,216.46,24.59510441]
[1734364567768,14.08325013,216.61,216.46,24.59510441]
[1734364568280,14.08325013,216.61,216.46,161.29510441]
[1734364568489,14.08325013,216.62,216.46,160.602374]
[1734364568781,20.0,216.59,216.46,160.602374]
[1734364569379,14.08325013,216.56,216.45,6.0851]
[1734364569681,14.08325013,216.53,216.45,6.0851]
[1734364569989,14.08325013,216.5,216.38,6.0421]
[1734364570160,14.08325013,216.49,216.38,142.7421]
[1734364570482,14.08325013,216.49,216.39,0.12549]
[1734364570661,14.08325013,216.49,216.38,6.0421]
[1734364571064,14.08325013,216.5,216.39,0.12549]
[1734364572279,14.08325013,216.5,216.38,6.0421]
[1734364573780,14.08325013,216.51,216.39,0.12549]
[1734364574188,14.08325013,216.5,216.39,0.12549]
[1734364574376,14.08325013,216.47,216.39,0.12549]
[1734364574880,14.08325013,216.48,216.38,6.0421]
[1734364575187,14.08325013,216.5,216.39,0.12549]
[1734364575393,14.08325013,216.49,216.39,0.12549]
[1734364578569,14.08325013,216.46,216.39,0.12549]
[1734364578777,14.08325013,216.43,216.39,0.12549]
[1734364578965,14.08325013,216.4,216.32,6.4562]
[1734364579267,14.08325013,216.38,216.32,6.4562]
[1734364580090,14.08325013,216.39,216.33,0.12549]
[1734364580459,14.08325013,216.4,216.33,0.12549]
[1734364580772,14.08325013,216.43,216.33,0.12549]
[1734364580973,14.08325013,216.44,216.33,0.12549]
[1734364582169,14.08325013,216.43,216.33,0.12549]
[1734364582975,14.08325013,216.44,216.33,0.12549]
[1734364585965,14.08325013,216.44,216.33,23.902374]
[1734364586171,34.08325013,216.47,216.35,0.12549]
[1734364586367,14.08325013,216.49,216.35,160.602374]
[1734364586703,1.5361,216.52,216.37,160.602374]
[1734364586909,14.08325013,216.56,216.41,23.902374]
[1734364587192,14.08325013,216.56,216.43,0.12549]
[1734364589006,14.08325013,216.54,216.43,0.12549]
[1734364589715,15.61935013,216.57,216.43,23.902374]
[1734364589883,14.08325013,216.57,216.45,0.12549]
[1734364590380,14.08325013,216.56,216.45,0.12549]
[1734364590581,14.08325013,216.57,216.45,23.902374]
[1734364590780,14.08325013,216.59,216.47,0.12549]
[1734364591595,14.08325013,216.59,216.47,23.902374]
[1734364591988,14.08325013,216.59,216.47,160.602374]
[1734364593504,14.08325013,216.6,216.49,23.902374]
[1734364594085,14.08325013,216.61,216.49,23.902374]
[1734364594909,14.08325013,216.63,216.51,0.12549]
[1734364595215,14.08325013,216.65,216.53,23.902374]
[1734364595507,3.34957249,216.68,216.53,23.902374]
[1734364595706,14.08325013,216.64,216.53,23.902374]
[1734364596092,14.08325013,216.63,216.53,23.902374]
[1734364596484,14.08325013,216.62,216.53,0.12549]
[1734364596687,14.08325013,216.58,216.53,0.12549]
[1734364596888,14.08325013,216.56,216.52,6.2362]
[1734364597305,14.08325013,216.56,216.53,0.12549]
[1734364597808,14.08325013,216.56,216.46,6.44729]
[1734364598602,14.08325013,216.56,216.48,0.12549]
[1734364599623,14.08325013,216.55,216.46,6.3218]
[1734364599832,14.08325013,216.54,216.46,6.3218]
[1734364600000,14.08325013,216.54,216.47,0.12549]
[1734364600199,14.08325013,216.59,216.46,6.3218]
[1734364600200,14.08325013,216.52,216.46,6.3218]
[1734364600906,14.08325013,216.52,216.47,0.12549]
[1734364601433,14.08325013,216.52,216.46,6.3218]
[1734364601723,14.08325013,216.59,216.46,6.3218]
[1734364601724,14.08325013,216.53,216.46,6.3218]
[1734364602632,14.08325013,216.53,216.47,0.12549]
[1734364603050,14.08325013,216.54,216.47,0.12549]
[1734364603210,14.08325013,216.56,216.47,0.12549]
[1734364604146,14.08325013,216.57,216.47,0.12549]
[1734364604648,14.08325013,216.59,216.47,23.902374]
[1734364606131,14.08325013,216.6,216.47,23.902374]
[1734364606314,34.08325013,216.6,216.47,23.902374]
[1734364607529,34.08325013,216.6,216.47,24.59501043]
[1734364608435,34.08325013,216.6,216.47,161.29501043]
[1734364608607,34.08325013,216.6,216.47,160.602374]
[1734364609043,20.0,216.6,216.47,160.602374]
[1734364609316,20.0,216.63,216.49,160.602374]
[1734364609654,14.08325013,216.64,216.51,23.902374]
[1734364610441,14.08325013,216.64,216.53,0.12549]
[1734364610756,14.08325013,216.64,216.53,23.902374]
[1734364611321,1.5579,216.67,216.52,23.902374]
[1734364611322,14.08325013,216.63,216.52,23.902374]
[1734364611706,14.08325013,216.65,216.53,6.3769]
[1734364611906,14.08325013,216.66,216.56,0.12549]
[1734364612534,14.08325013,216.66,216.54,136.7]
[1734364612974,14.08325013,216.66,216.55,0.12549]
[1734364614070,14.08325013,216.67,216.55,24.59482919]
[1734364614579,14.08325013,216.67,216.55,161.29482919]
[1734364614746,14.08325013,216.67,216.55,160.602374]
[1734364616055,14.08325013,216.59,216.48,6.554]
[1734364616248,14.08325013,216.56,216.48,6.554]
[1734364616584,14.08325013,216.55,216.49,0.12549]
[1734364616736,14.08325013,216.54,216.48,6.554]
[1734364616942,14.08325013,216.54,216.49,0.12549]
[1734364617364,14.08325013,216.55,216.49,0.12549]
[1734364618771,14.08325013,216.53,216.48,6.554]
[1734364618970,14.08325013,216.53,216.42,6.4361]
[1734364619152,14.08325013,216.53,216.43,0.12549]
[1734364619962,14.08325013,216.54,216.43,0.12549]
[1734364620271,14.08325013,216.54,216.43,23.902374]
[1734364620635,14.08325013,216.56,216.43,161.29520416]
[1734364620837,14.08325013,216.59,216.43,160.602374]
[1734364621048,14.08325013,216.59,216.45,23.902374]
[1734364621251,14.08325013,216.58,216.45,23.902374]
[1734364621668,14.08325013,216.59,216.45,23.902374]
[1734364621845,14.08325013,216.58,216.45,23.902374]
[1734364622170,14.08325013,216.6,216.47,23.902374]
[1734364622367,14.08325013,216.56,216.47,23.902374]
[1734364622670,14.08325013,216.55,216.46,20.0]
[1734364622841,14.08325013,216.56,216.46,20.0]
[1734364623043,20.0,216.62,216.48,0.12549]
[1734364623044,14.08325013,216.59,216.48,0.12549]
[1734364623444,14.08325013,216.58,216.48,0.12549]
[1734364623658,14.08325013,216.57,216.48,0.12549]
[1734364624946,14.08325013,216.55,216.46,136.7]
[1734364625155,14.08325013,216.54,216.42,143.1361]
[1734364625959,14.08325013,216.54,216.43,0.12549]
[1734364626561,14.08325013,216.46,216.36,6.6318]
[1734364626944,14.08325013,216.47,216.36,6.6318]
[1734364627358,14.08325013,216.47,216.37,0.12549]
[1734364627574,14.08325013,216.47,216.36,6.6318]
[1734364628257,14.08325013,216.47,216.37,0.12549]
[1734364631762,14.08325013,216.51,216.37,160.602374]
[1734364631968,14.08325013,216.49,216.38,136.7]
[1734364632470,14.08325013,216.52,216.39,23.902374]
[1734364633164,14.08325013,216.51,216.39,23.902374]
[1734364633372,14.08325013,216.44,216.36,6.6318]
[1734364633566,23.776884,216.52,216.36,6.6318]
[1734364633567,14.08325013,216.43,216.36,6.6318]
[1734364633977,14.08325013,216.45,216.36,6.6318]
[1734364634161,14.08325013,216.48,216.37,0.12549]
[1734364635168,14.08325013,216.51,216.37,24.59540583]
[1734364635388,14.08325013,216.52,216.37,161.29540583]
[1734364635588,14.08325013,216.52,216.37,160.602374]
[1734364635896,2.80752732,216.55,216.37,160.602374]
[1734364636066,14.08325013,216.52,216.37,160.602374]
[1734364636689,14.08325013,216.52,216.39,160.602374]
[1734364636975,14.08325013,216.51,216.39,160.602374]
[1734364637610,2.80752732,216.55,216.43,23.902374]
[1734364637611,14.08325013,216.55,216.43,23.902374]
[1734364637974,34.08325013,216.56,216.43,23.902374]
[1734364638338,14.08325013,216.55,216.43,23.902374]
[1734364639068,14.08325013,216.54,216.43,23.902374]
[1734364639613,14.08325013,216.55,216.43,161.29518594]
[1734364639820,14.08325013,216.56,216.43,160.602374]
[1734364639979,14.08325013,216.58,216.45,0.12549]
[1734364640181,14.08325013,216.58,216.45,23.902374]
[1734364640510,14.08325013,216.58,216.45,160.602374]
[1734364641220,14.08325013,216.58,216.47,23.902374]
[1734364641382,14.08325013,216.58,216.47,0.12549]
[1734364642094,14.08325013,216.56,216.47,0.12549]
[1734364642285,14.08325013,216.55,216.43,23.776884]
[1734364642489,14.08325013,216.55,216.44,0.12549]
[1734364642900,14.08325013,216.56,216.44,136.82549]
[1734364643089,14.08325013,216.56,216.46,0.12549]
[1734364644383,14.08325013,216.55,216.46,0.12549]
[1734364644578,14.08325013,216.54,216.46,0.12549]
[1734364644796,14.08325013,216.52,216.42,6.3659]
[1734364644981,14.08325013,216.51,216.42,6.3659]
[1734364645184,14.08325013,216.5,216.42,6.3659]
[1734364645484,14.08325013,216.5,216.43,0.12549]
[1734364645680,14.08325013,216.52,216.43,0.12549]
[1734364646002,14.08325013,216.51,216.43,0.12549]
[1734364646804,21.5424,216.56,216.43,0.12549]
[1734364646805,14.08325013,216.52,216.43,0.12549]
[1734364648681,14.08325013,216.53,216.43,0.12549]
[1734364653887,15.62565013,216.56,216.43,23.902374]
[1734364654190,20.0,216.55,216.43,160.602374]
[1734364654394,20.0,216.55,216.45,23.902374]
[1734364655122,20.0,216.56,216.45,23.902374]
[1734364656283,1.5675,216.61,216.45,23.902374]
[1734364656284,20.0,216.55,216.45,23.902374]
[1734364656975,20.0,216.59,216.45,23.902374]
[1734364657180,20.0,216.6,216.47,23.902374]
[1734364657181,14.08325013,216.6,216.47,23.902374]
[1734364657997,15.65075013,216.61,216.47,160.602374]
[1734364658190,15.65075013,216.61,216.51,0.12549]
[1734364658397,1.5675,216.61,216.51,0.12549]
[1734364658709,1.5675,216.61,216.51,6.53669]
[1734364659705,15.65075013,216.61,216.51,6.53669]
[1734364660499,1.5675,216.61,216.51,6.53669]
[1734364660707,34.08325013,216.63,216.51,6.53669]
[1734364661215,15.74735013,216.66,216.55,0.12549]
[1734364661792,14.08325013,216.65,216.55,0.12549]
[1734364661990,14.08325013,216.64,216.55,0.12549]
[1734364662406,14.08325013,216.62,216.53,136.7]
[1734364663718,14.08325013,216.63,216.54,0.12549]
[1734364664908,14.08325013,216.62,216.54,0.12549]
[1734364665626,14.08325013,216.64,216.52,0.12549]
[1734364666196,14.08325013,216.65,216.52,0.12549]
[1734364666399,14.08325013,216.67,216.52,24.59490826]
[1734364666599,14.08325013,216.65,216.52,24.59490826]
[1734364667226,14.08325013,216.66,216.52,24.59490826]
[1734364667414,14.08325013,216.65,216.52,24.59490826]
[1734364667615,35.2261744,216.7,216.52,24.59490826]
[1734364667616,14.08325013,216.62,216.52,23.902374]
[1734364667825,14.08325013,216.64,216.52,23.902374]
[1734364668608,14.08325013,216.64,216.52,160.602374]
[1734364669298,14.08325013,216.59,216.52,136.7]
[1734364669504,14.08325013,216.6,216.51,6.4112]
[1734364669725,14.08325013,216.61,216.52,0.12549]
[1734364669950,20.0,216.66,216.52,0.12549]
[1734364670242,14.08325013,216.61,216.52,0.12549]
[1734364670741,14.08325013,216.6,216.52,0.12549]
[1734364671040,14.08325013,216.61,216.51,6.4112]
[1734364671214,14.08325013,216.58,216.51,6.4112]
[1734364671422,14.08325013,216.57,216.51,6.4112]
[1734364671603,14.08325013,216.58,216.52,0.12549]
[1734364671802,14.08325013,216.59,216.51,6.4112]
[1734364672032,14.08325013,216.6,216.52,0.12549]
[1734364672209,14.08325013,216.59,216.52,0.12549]
[1734364673533,14.08325013,216.6,216.52,0.12549]
[1734364675744,14.08325013,216.59,216.52,0.12549]
[1734364676917,1.5094,216.67,216.54,0.12549]
[1734364677127,1.5094,216.67,216.54,0.81789774]
[1734364679407,35.59265013,216.67,216.54,0.81789774]
[1734364680011,21.5094,216.67,216.54,0.81789774]
[1734364680433,35.59265013,216.67,216.54,0.81789774]
[1734364680610,35.59265013,216.67,216.54,137.51789774]
[1734364680811,35.59265013,216.67,216.54,136.82549]
[1734364681126,14.08325013,216.66,216.54,136.82549]
[1734364681534,14.08325013,216.65,216.54,136.82549]
[1734364682446,21.5094,216.67,216.54,136.82549]
[1734364682613,35.59265013,216.67,216.54,136.82549]
[1734364683259,14.08325013,216.66,216.54,136.82549]
[1734364683536,14.08325013,216.66,216.53,0.12549]
[1734364684317,14.08325013,216.65,216.53,0.12549]
[1734364684922,14.08325013,216.66,216.53,0.12549]
[1734364685626,20.0,216.65,216.55,0.12549]
[1734364686020,20.0,216.65,216.54,0.12549]
[1734364686625,20.0,216.65,216.53,0.12549]
[1734364686941,34.08325013,216.67,216.53,0.81799857]
[1734364687425,20.0,216.67,216.53,0.81799857]
[1734364687627,20.0,216.65,216.53,0.81799857]
[1734364687822,18.435947,216.7,216.59,0.12549]
[1734364688140,15.02494363,216.74,216.63,0.12549]
[1734364688141,0.5644748,216.74,216.63,0.12549]
[1734364688324,18.430241,216.73,216.63,0.12549]
[1734364688519,14.64772493,216.74,216.63,0.12549]
[1734364689233,0.5644748,216.74,216.64,6.6426]